Workbook

Sheet ЭО-9 (ТЭ)
A3: Отчет о выполнении плана работ по текущей эксплуатации ЭЧ-1
C5: Наименование работ | D5: Ед. изм. | E5: Текущая эксплуатация
E6: год | G6: месяц | I6: неделя
E7: план | F7: % выполн | G7: план | H7: % выполн | I7: план | J7: % выполн | K7: план на неделю
E8: факт | G8: факт | I8: факт
A9: 1 | B9: 1 | C9: Комплексная проверка состояния и ремонт контактной подвески на главных путях | D9: км | E9: 184.9 | F9: =IF(ISERROR(E10/E9),0,(E10/E9)) -> 0.06976744186 | G9: 20.339 | H9: =IF(ISERROR(G10/G9),0,(G10/G9)) -> 0.5064162447 | I9: 5.1 | J9: =IF(ISERROR(I10/I9),0,(I10/I9)) -> 0.5294117647
D10: км | E10: 12.9 | G10: 10.3 | I10: 2.7
A11: 2 | B11: 2 | C11: Диагностирование состояния железобетонных предварительно напряженных опор контактной сети | D11: шт | E11: 627 | F11: =IF(ISERROR(E12/E11),0,(E12/E11)) -> 0 | H11: =IF(ISERROR(G12/G11),0,(G12/G11)) -> 0 | J11: =IF(ISERROR(I12/I11),0,(I12/I11)) -> 0
D12: шт
A13: 3 | B13: 3 | C13: Проверка состояния, регулировка и ремонт воздушных стрелок, в том числе | D13: шт | E13: 498 | F13: =IF(ISERROR(E14/E13),0,(E14/E13)) -> 0.09236947791 | H13: =IF(ISERROR(G14/G13),0,(G14/G13)) -> 0 | J13: =IF(ISERROR(I14/I13),0,(I14/I13)) -> 0
D14: шт | E14: 46 | G14: 32 | I14: 10
A15: 4 | B15: 3.1. | C15: главных путей | D15: шт | E15: 177 | F15: =IF(ISERROR(E16/E15),0,(E16/E15)) -> 0.1242937853 | H15: =IF(ISERROR(G16/G15),0,(G16/G15)) -> 0 | J15: =IF(ISERROR(I16/I15),0,(I16/I15)) -> 0
D16: шт | E16: 22 | G16: 8 | I16: 2
A17: 5 | B17: 3.2. | C17: второстепенных путей | D17: шт | E17: 321 | F17: =IF(ISERROR(E18/E17),0,(E18/E17)) -> 0.07476635514 | H17: =IF(ISERROR(G18/G17),0,(G18/G17)) -> 0 | J17: =IF(ISERROR(I18/I17),0,(I18/I17)) -> 0
D18: шт | E18: 24 | G18: 24 | I18: 8
A19: 6 | B19: 4 | C19: Проверка состояния, регулировка и ремонт компенсирующих устройств | D19: шт | E19: 1027 | F19: =IF(ISERROR(E20/E19),0,(E20/E19)) -> 0.1986368062 | H19: =IF(ISERROR(G20/G19),0,(G20/G19)) -> 0 | J19: =IF(ISERROR(I20/I19),0,(I20/I19)) -> 0
D20: шт | E20: 204 | G20: 84 | I20: 20
A21: 7 | B21: 5 | C21: Проверка состояния, регулировка и ремонт роговых разрядников и ОПН контактной сети | D21: шт | E21: 311 | F21: =IF(ISERROR(E22/E21),0,(E22/E21)) -> 0 | H21: =IF(ISERROR(G22/G21),0,(G22/G21)) -> 0 | J21: =IF(ISERROR(I22/I21),0,(I22/I21)) -> 0
D22: шт
A23: 8 | B23: 6 | C23: Оценка состояния (с откопкой) подземной части железобетонных опор, фундаментов, анкеров | D23: шт | E23: 390 | F23: =IF(ISERROR(E24/E23),0,(E24/E23)) -> 0 | H23: =IF(ISERROR(G24/G23),0,(G24/G23)) -> 0 | J23: =IF(ISERROR(I24/I23),0,(I24/I23)) -> 0
D24: шт
A25: 9 | B25: 6.1. | C25: Выявлено дефектных опор (фундаментов ж.б. опор) контактной сети | D25: шт
A26: 10 | B26: 6.1.1. | C26: В том числе: остродефектных опор (фундаментов ж.б. опор) контактной сети | D26: шт
A27: 11 | B27: 7 | C27: Обследование несущей способности металлических опор контактной сети и их фундаментов | D27: шт | E27: 230 | F27: =IF(ISERROR(E28/E27),0,(E28/E27)) -> 0 | H27: =IF(ISERROR(G28/G27),0,(G28/G27)) -> 0 | J27: =IF(ISERROR(I28/I27),0,(I28/I27)) -> 0
D28: шт
A29: 12 | B29: 7.1. | C29: Выявлено дефектных металлических опор контактной сети | D29: шт
A30: 13 | B30: 7.1.1. | C30: В том числе: остродефектных металлических опор контактной сети | D30: шт
A31: 14 | B31: 7.2. | C31: Выявлено дефектных фундаментов | D31: шт
A32: 15 | B32: 7.2.1. | C32: В том числе: остродефектных фундаментов | D32: шт
A33: 16 | B33: 8 | C33: Установка новых опор контактной сети (ж.б. и мет.), из них | D33: шт | E33: 8 | F33: =IF(ISERROR(E34/E33),0,(E34/E33)) -> 0 | G33: 1 | H33: =IF(ISERROR(G34/G33),0,(G34/G33)) -> 0 | J33: =IF(ISERROR(I34/I33),0,(I34/I33)) -> 0
D34: шт
A35: 17 | B35: 8.1. | C35: Для замены дефектных опор | D35: шт | F35: =IF(ISERROR(E36/E35),0,(E36/E35)) -> 0 | H35: =IF(ISERROR(G36/G35),0,(G36/G35)) -> 0 | J35: =IF(ISERROR(I36/I35),0,(I36/I35)) -> 0
D36: шт
A37: 18 | B37: 8.2. | C37: Для замены остродефектных опор | D37: шт | F37: =IF(ISERROR(E38/E37),0,(E38/E37)) -> 0 | H37: =IF(ISERROR(G38/G37),0,(G38/G37)) -> 0 | J37: =IF(ISERROR(I38/I37),0,(I38/I37)) -> 0
D38: шт
A39: 19 | B39: 8.3. | C39: Для замены негабаритных опор | D39: шт | F39: =IF(ISERROR(E40/E39),0,(E40/E39)) -> 0 | H39: =IF(ISERROR(G40/G39),0,(G40/G39)) -> 0 | J39: =IF(ISERROR(I40/I39),0,(I40/I39)) -> 0
D40: шт
A41: 20 | B41: 8.4. | C41: Установка новых металлических опор контактной сети | D41: шт | F41: =IF(ISERROR(E42/E41),0,(E42/E41)) -> 0 | H41: =IF(ISERROR(G42/G41),0,(G42/G41)) -> 0 | J41: =IF(ISERROR(I42/I41),0,(I42/I41)) -> 0
D42: шт | E42: 0 | G42: 0
A43: 21 | B43: 9 | C43: Перевод контактной подвески на установленные опоры контактной сети, из них | D43: шт | E43: 10 | F43: =IF(ISERROR(E44/E43),0,(E44/E43)) -> 0.1 | G43: 1 | H43: =IF(ISERROR(G44/G43),0,(G44/G43)) -> 1 | J43: =IF(ISERROR(I44/I43),0,(I44/I43)) -> 0
D44: шт | E44: 1 | G44: 1
A45: 22 | B45: 9.1. | C45: Перевод контактной подвески с дефектных опор контактной сети | D45: шт | F45: =IF(ISERROR(E46/E45),0,(E46/E45)) -> 0 | H45: =IF(ISERROR(G46/G45),0,(G46/G45)) -> 0 | J45: =IF(ISERROR(I46/I45),0,(I46/I45)) -> 0
D46: шт
A47: 23 | B47: 9.2. | C47: Перевод контактной подвески с остродефектных опор контактной сети | D47: шт | F47: =IF(ISERROR(E48/E47),0,(E48/E47)) -> 0 | G47: 1 | H47: =IF(ISERROR(G48/G47),0,(G48/G47)) -> 1 | J47: =IF(ISERROR(I48/I47),0,(I48/I47)) -> 0
D48: шт | E48: 1 | G48: 1
A49: 24 | B49: 9.3. | C49: Перевод контактной подвески с негабаритных опор контактной сети | D49: шт | F49: =IF(ISERROR(E50/E49),0,(E50/E49)) -> 0 | H49: =IF(ISERROR(G50/G49),0,(G50/G49)) -> 0 | J49: =IF(ISERROR(I50/I49),0,(I50/I49)) -> 0
D50: шт
A51: 25 | B51: 10 | C51: Замена негабаритных опор контактной сети (перевод+демонтаж) | D51: шт | F51: =IF(ISERROR(E52/E51),0,(E52/E51)) -> 0 | H51: =IF(ISERROR(G52/G51),0,(G52/G51)) -> 0 | J51: =IF(ISERROR(I52/I51),0,(I52/I51)) -> 0
D52: шт
A53: 26 | B53: 11 | C53: Замена гибких поперечин на жесткие | D53: шт | F53: =IF(ISERROR(E54/E53),0,(E54/E53)) -> 0 | H53: =IF(ISERROR(G54/G53),0,(G54/G53)) -> 0 | J53: =IF(ISERROR(I54/I53),0,(I54/I53)) -> 0
D54: шт
A55: 27 | B55: 12 | C55: Замена жестких поперечин | D55: шт | F55: =IF(ISERROR(E56/E55),0,(E56/E55)) -> 0 | H55: =IF(ISERROR(G56/G55),0,(G56/G55)) -> 0 | J55: =IF(ISERROR(I56/I55),0,(I56/I55)) -> 0
D56: шт
A57: 28 | B57: 13 | C57: Демонтаж разгруженных опор контактной сети | D57: шт | E57: 10 | F57: =IF(ISERROR(E58/E57),0,(E58/E57)) -> 0.2 | G57: 3 | H57: =IF(ISERROR(G58/G57),0,(G58/G57)) -> 0.6666666667 | J57: =IF(ISERROR(I58/I57),0,(I58/I57)) -> 0
D58: шт | E58: 2 | G58: 2 | I58: 1
A59: 29 | B59: 14 | C59: Замена изношенного контактного провода | D59: км | F59: =IF(ISERROR(E60/E59),0,(E60/E59)) -> 0 | H59: =IF(ISERROR(G60/G59),0,(G60/G59)) -> 0 | J59: =IF(ISERROR(I60/I59),0,(I60/I59)) -> 0
D60: км
A61: 30 | B61: 15 | C61: Замена несущего троса | D61: км | F61: =IF(ISERROR(E62/E61),0,(E62/E61)) -> 0 | H61: =IF(ISERROR(G62/G61),0,(G62/G61)) -> 0 | J61: =IF(ISERROR(I62/I61),0,(I62/I61)) -> 0
D62: км
A63: 31 | B63: 15.1. | C63: В том числе: замена стального несущего троса | D63: км | F63: =IF(ISERROR(E64/E63),0,(E64/E63)) -> 0 | H63: =IF(ISERROR(G64/G63),0,(G64/G63)) -> 0 | J63: =IF(ISERROR(I64/I63),0,(I64/I63)) -> 0
D64: км
A65: 32 | B65: 16 | C65: Замена тросов гибких поперечин | D65: шт.г/п | F65: =IF(ISERROR(E66/E65),0,(E66/E65)) -> 0 | H65: =IF(ISERROR(G66/G65),0,(G66/G65)) -> 0 | J65: =IF(ISERROR(I66/I65),0,(I66/I65)) -> 0
D66: шт.г/п
A67: 33 | B67: 17 | C67: Замена дефектного стального троса грузовых компенсаторов | D67: шт | E67: 10 | F67: =IF(ISERROR(E68/E67),0,(E68/E67)) -> 0.5 | G67: 10 | H67: =IF(ISERROR(G68/G67),0,(G68/G67)) -> 0.2 | J67: =IF(ISERROR(I68/I67),0,(I68/I67)) -> 0
D68: шт | E68: 5 | G68: 2
A69: 34 | B69: 18 | C69: Замена блочных компенсирующих устройств на блочнополиспастные | D69: шт | E69: 15 | F69: =IF(ISERROR(E70/E69),0,(E70/E69)) -> 0 | H69: =IF(ISERROR(G70/G69),0,(G70/G69)) -> 0 | J69: =IF(ISERROR(I70/I69),0,(I70/I69)) -> 0
D70: шт
A71: 35 | B71: 19 | C71: Замена высоковольтных изоляторов на контактной сети всех типов | D71: тыс.шт. | E71: =E73+E77 -> 0.476 | F71: =IF(ISERROR(E72/E71),0,(E72/E71)) -> 0.006302521008 | G71: =G73+G77 -> 0.03 | H71: =IF(ISERROR(G72/G71),0,(G72/G71)) -> 0.1 | I71: =I73+I77 -> 0 | J71: =IF(ISERROR(I72/I71),0,(I72/I71)) -> 0 | K71: =K73+K77 -> 0
D72: тыс.шт. | E72: =E74+E78 -> 0.003 | G72: =G74+G78 -> 0.003 | I72: =I74+I78 -> 0
A73: 36 | B73: 19.1. | C73: В том числе: замена тарельчатых изоляторов - всего | D73: тыс.шт. | E73: 0.376 | F73: =IF(ISERROR(E74/E73),0,(E74/E73)) -> 0.007978723404 | G73: 0.03 | H73: =IF(ISERROR(G74/G73),0,(G74/G73)) -> 0.1 | J73: =IF(ISERROR(I74/I73),0,(I74/I73)) -> 0
D74: тыс.шт. | E74: 0.003 | G74: 0.003
A75: 37 | B75: 19.1.1. | C75: В том числе: типа П-4,5 | D75: тыс.шт. | E75: 0.376 | F75: =IF(ISERROR(E76/E75),0,(E76/E75)) -> 0.007978723404 | G75: 0.029 | H75: =IF(ISERROR(G76/G75),0,(G76/G75)) -> 0.1034482759 | J75: =IF(ISERROR(I76/I75),0,(I76/I75)) -> 0
D76: тыс.шт. | E76: 0.003 | G76: 0.003
A77: 38 | B77: 19.2. | C77: В том числе: замена стержневых изоляторов - всего | D77: тыс.шт. | E77: 0.1 | F77: =IF(ISERROR(E78/E77),0,(E78/E77)) -> 0 | H77: =IF(ISERROR(G78/G77),0,(G78/G77)) -> 0 | J77: =IF(ISERROR(I78/I77),0,(I78/I77)) -> 0
D78: тыс.шт.
A79: 39 | B79: 19.2.1. | C79: В том числе: типа VKL | D79: тыс.шт. | E79: 0.006 | F79: =IF(ISERROR(E80/E79),0,(E80/E79)) -> 0 | G79: 0.001 | H79: =IF(ISERROR(G80/G79),0,(G80/G79)) -> 0 | J79: =IF(ISERROR(I80/I79),0,(I80/I79)) -> 0
D80: тыс.шт.
A81: 40 | B81: 19.2.2. | C81: В том числе: типа ФСФ-70 | D81: тыс.шт. | F81: =IF(ISERROR(E82/E81),0,(E82/E81)) -> 0 | H81: =IF(ISERROR(G82/G81),0,(G82/G81)) -> 0 | J81: =IF(ISERROR(I82/I81),0,(I82/I81)) -> 0
D82: тыс.шт.
A83: 41 | B83: 20 | C83: Установка полимерных изоляторов | D83: тыс.шт. | E83: 0.25 | F83: =IF(ISERROR(E84/E83),0,(E84/E83)) -> 0.004 | H83: =IF(ISERROR(G84/G83),0,(G84/G83)) -> 0 | J83: =IF(ISERROR(I84/I83),0,(I84/I83)) -> 0
D84: тыс.шт. | E84: 0.001 | G84: 0.001
A85: 42 | B85: 21 | C85: Замена и установка секционных изоляторов всех типов | D85: шт | E85: 5 | F85: =IF(ISERROR(E86/E85),0,(E86/E85)) -> 0 | G85: 2 | H85: =IF(ISERROR(G86/G85),0,(G86/G85)) -> 0 | J85: =IF(ISERROR(I86/I85),0,(I86/I85)) -> 0
D86: шт
A87: 43 | B87: 22 | C87: Диагностирование фарфоровых изоляторов тарельчатого типа | D87: тыс.шт. | F87: =IF(ISERROR(E88/E87),0,(E88/E87)) -> 0 | H87: =IF(ISERROR(G88/G87),0,(G88/G87)) -> 0 | J87: =IF(ISERROR(I88/I87),0,(I88/I87)) -> 0
D88: тыс.шт.
A89: 44 | B89: 22.1. | C89: Выявлено дефектных изоляторов | D89: шт | F89: =IF(ISERROR(E90/E89),0,(E90/E89)) -> 0 | H89: =IF(ISERROR(G90/G89),0,(G90/G89)) -> 0
A90: 45 | B90: 23 | C90: Замена и установка защитных устройств от пережогов конт. проводов на возд. промежутках и нейтральных вставках | D90: шт | E90: 3 | F90: =IF(ISERROR(E91/E90),0,(E91/E90)) -> 0 | H90: =IF(ISERROR(G91/G90),0,(G91/G90)) -> 0 | J90: =IF(ISERROR(I91/I90),0,(I91/I90)) -> 0
D91: шт
A92: 46 | B92: 23.1. | C92: В том числе: установка защитных устройств от пережогов конт. проводов на возд. промежутках.и нейтральных вставках не имеющ защиты | D92: шт | F92: =IF(ISERROR(E93/E92),0,(E93/E92)) -> 0 | H92: =IF(ISERROR(G93/G92),0,(G93/G92)) -> 0 | J92: =IF(ISERROR(I93/I92),0,(I93/I92)) -> 0
D93: шт
A94: 47 | B94: 24 | C94: Ремонт воздушных стрелок контактной сети | D94: шт | E94: 20 | F94: =IF(ISERROR(E95/E94),0,(E95/E94)) -> 0.05 | H94: =IF(ISERROR(G95/G94),0,(G95/G94)) -> 0 | J94: =IF(ISERROR(I95/I94),0,(I95/I94)) -> 0
D95: шт | E95: 1
A96: 48 | B96: 24.1. | C96: В том числе: воздушных стрелок с пересечением одиночных и двойных контактных проводов с установкой устройства одновременного подъема проводов | D96: шт | E96: 11 | F96: =IF(ISERROR(E97/E96),0,(E97/E96)) -> 0.09090909091 | H96: =IF(ISERROR(G97/G96),0,(G97/G96)) -> 0 | J96: =IF(ISERROR(I97/I96),0,(I97/I96)) -> 0
D97: шт | E97: 1
A98: 49 | B98: 25 | C98: Замена стыковых зажимов КС-058, КС-059 | D98: шт | E98: 40 | F98: =IF(ISERROR(E99/E98),0,(E99/E98)) -> 0 | G98: 20 | H98: =IF(ISERROR(G99/G98),0,(G99/G98)) -> 0 | J98: =IF(ISERROR(I99/I98),0,(I99/I98)) -> 0
D99: шт
A100: 50 | B100: 26 | C100: Замена фиксирующих зажимов КС-049 | D100: шт | E100: 50 | F100: =IF(ISERROR(E101/E100),0,(E101/E100)) -> 0.32 | G100: 11 | H100: =IF(ISERROR(G101/G100),0,(G101/G100)) -> 1.272727273 | J100: =IF(ISERROR(I101/I100),0,(I101/I100)) -> 0
D101: шт | E101: 16 | G101: 14 | I101: 6
A102: 51 | C102: Замена зажима КС-053 | D102: шт | E102: 110 | F102: =IF(ISERROR(E103/E102),0,(E103/E102)) -> 0.1636363636 | H102: =IF(ISERROR(G103/G102),0,(G103/G102)) -> 0 | J102: =IF(ISERROR(I103/I102),0,(I103/I102)) -> 0
D103: шт | E103: 18 | G103: 12 | I103: 6
A104: 52 | C104: Замена зажима средней анкеровки КС-051 | D104: шт | E104: 60 | F104: =IF(ISERROR(E105/E104),0,(E105/E104)) -> 0 | H104: =IF(ISERROR(G105/G104),0,(G105/G104)) -> 0 | J104: =IF(ISERROR(I105/I104),0,(I105/I104)) -> 0
D105: шт
A106: 53 | B106: 27 | C106: Установка подкосов на консолях | D106: шт | F106: =IF(ISERROR(E107/E106),0,(E107/E106)) -> 0 | H106: =IF(ISERROR(G107/G106),0,(G107/G106)) -> 0 | J106: =IF(ISERROR(I107/I106),0,(I107/I106)) -> 0
D107: шт
A108: 54 | B108: 28 | C108: Замена неоцинкованных трубчатых тяг консолей | D108: шт | E108: 10 | F108: =IF(ISERROR(E109/E108),0,(E109/E108)) -> 0 | H108: =IF(ISERROR(G109/G108),0,(G109/G108)) -> 0 | J108: =IF(ISERROR(I109/I108),0,(I109/I108)) -> 0
D109: шт
A110: 55 | B110: 29 | C110: Установка страхующих петель на хомуты тяг консолей со сроком службы более 40 лет на переходных опорах сопряжений и на опорах в кривых малого (менее 600 м) радиуса | D110: шт | F110: =IF(ISERROR(E111/E110),0,(E111/E110)) -> 0 | H110: =IF(ISERROR(G111/G110),0,(G111/G110)) -> 0 | J110: =IF(ISERROR(I111/I110),0,(I111/I110)) -> 0
D111: шт
A112: 56 | B112: 30 | C112: Ремонт понижающих и тяговых трансформаторов | D112: шт | F112: =IF(ISERROR(E113/E112),0,(E113/E112)) -> 0 | H112: =IF(ISERROR(G113/G112),0,(G113/G112)) -> 0 | J112: =IF(ISERROR(I113/I112),0,(I113/I112)) -> 0
D113: шт
A114: 57 | B114: 31 | C114: Проведение комплексной диагностики понижающих и тяговых трансформаторов | D114: шт | F114: =IF(ISERROR(E115/E114),0,(E115/E114)) -> 0 | H114: =IF(ISERROR(G115/G114),0,(G115/G114)) -> 0 | J114: =IF(ISERROR(I115/I114),0,(I115/I114)) -> 0
D115: шт
A116: 58 | B116: 32 | C116: Замена выключателей фидеров контактной сети постоянного тока | D116: шт | F116: =IF(ISERROR(E117/E116),0,(E117/E116)) -> 0 | H116: =IF(ISERROR(G117/G116),0,(G117/G116)) -> 0 | J116: =IF(ISERROR(I117/I116),0,(I117/I116)) -> 0
D117: шт
A118: 59 | B118: 33 | C118: Замена выключателей фидеров контактной сети переменного тока | D118: шт | F118: =IF(ISERROR(E119/E118),0,(E119/E118)) -> 0 | H118: =IF(ISERROR(G119/G118),0,(G119/G118)) -> 0 | J118: =IF(ISERROR(I119/I118),0,(I119/I118)) -> 0
D119: шт
A120: 60 | B120: 34 | C120: Установка ОПН на контактной сети | D120: шт | E120: 20 | F120: =IF(ISERROR(E121/E120),0,(E121/E120)) -> 0 | H120: =IF(ISERROR(G121/G120),0,(G121/G120)) -> 0 | J120: =IF(ISERROR(I121/I120),0,(I121/I120)) -> 0
D121: шт
A122: 61 | B122: 35 | C122: Установка роговых разрядников на контактной сети | D122: шт | F122: =IF(ISERROR(E123/E122),0,(E123/E122)) -> 0 | H122: =IF(ISERROR(G123/G122),0,(G123/G122)) -> 0 | J122: =IF(ISERROR(I123/I122),0,(I123/I122)) -> 0
D123: шт
A124: 62 | B124: 36 | C124: Замена роговых разрядников на ОПН на тяговых подстанциях | D124: шт | F124: =IF(ISERROR(E125/E124),0,(E125/E124)) -> 0 | H124: =IF(ISERROR(G125/G124),0,(G125/G124)) -> 0 | J124: =IF(ISERROR(I125/I124),0,(I125/I124)) -> 0
D125: шт
A126: 63 | B126: 37 | C126: Замена опорных изоляторов на разъединителях 110 и 220 кВ на тяговых подстанциях | D126: шт | F126: =IF(ISERROR(E127/E126),0,(E127/E126)) -> 0 | H126: =IF(ISERROR(G127/G126),0,(G127/G126)) -> 0 | J126: =IF(ISERROR(I127/I126),0,(I127/I126)) -> 0
D127: шт
A128: 64 | B128: 38 | C128: Ремонт аккумуляторных батарей | D128: шт | F128: =IF(ISERROR(E129/E128),0,(E129/E128)) -> 0 | H128: =IF(ISERROR(G129/G128),0,(G129/G128)) -> 0 | J128: =IF(ISERROR(I129/I128),0,(I129/I128)) -> 0
D129: шт
A130: 65 | B130: 39 | C130: Пожароохранные мероприятия (по зданиям) | D130: шт | F130: =IF(ISERROR(E131/E130),0,(E131/E130)) -> 0 | H130: =IF(ISERROR(G131/G130),0,(G131/G130)) -> 0 | J130: =IF(ISERROR(I131/I130),0,(I131/I130)) -> 0
D131: шт
A132: 66 | B132: 40 | C132: Ремонт волноводных линий связи | D132: км | F132: =IF(ISERROR(E133/E132),0,(E133/E132)) -> 0 | H132: =IF(ISERROR(G133/G132),0,(G133/G132)) -> 0 | J132: =IF(ISERROR(I133/I132),0,(I133/I132)) -> 0
D133: км
A134: 67 | B134: 41 | C134: Замена проводов ВЛ АБ, ПЭ, ДПР | D134: км | F134: =IF(ISERROR(E135/E134),0,(E135/E134)) -> 0 | H134: =IF(ISERROR(G135/G134),0,(G135/G134)) -> 0 | J134: =IF(ISERROR(I135/I134),0,(I135/I134)) -> 0
D135: км
A136: 68 | B136: 41.1. | C136: В том числе: раскатано проводов СИП | D136: км | F136: =IF(ISERROR(E137/E136),0,(E137/E136)) -> 0 | H136: =IF(ISERROR(G137/G136),0,(G137/G136)) -> 0 | J136: =IF(ISERROR(I137/I136),0,(I137/I136)) -> 0
D137: км
A138: 69 | B138: 42 | C138: Замена опор ВЛ АБ, ПЭ | D138: шт | F138: =IF(ISERROR(E139/E138),0,(E139/E138)) -> 0 | H138: =IF(ISERROR(G139/G138),0,(G139/G138)) -> 0 | J138: =IF(ISERROR(I139/I138),0,(I139/I138)) -> 0
D139: шт
A140: 70 | B140: 43 | C140: Замена изоляторов ВЛ, АБ, ПЭ, ДПР (всех типов) | D140: тыс.шт. | F140: =IF(ISERROR(E141/E140),0,(E141/E140)) -> 0 | H140: =IF(ISERROR(G141/G140),0,(G141/G140)) -> 0 | J140: =IF(ISERROR(I141/I140),0,(I141/I140)) -> 0
D141: тыс.шт.
A142: 71 | B142: 44 | C142: Расчистка трасс ВЛ силами ЭЧ | D142: км | E142: 9.05 | F142: =IF(ISERROR(E143/E142),0,(E143/E142)) -> 0 | H142: =IF(ISERROR(G143/G142),0,(G143/G142)) -> 0 | J142: =IF(ISERROR(I143/I142),0,(I143/I142)) -> 0
D143: км
A144: 72 | B144: 44.1. | C144: Количество вырубленных деревьев с диаметром ствола более 8 см | D144: шт
A145: 73 | C145: Замена КС-109 | D145: шт | E145: 30 | F145: =IF(ISERROR(E146/E145),0,(E146/E145)) -> 0.06666666667 | H145: =IF(ISERROR(G146/G145),0,(G146/G145)) -> 0 | J145: =IF(ISERROR(I146/I145),0,(I146/I145)) -> 0
D146: шт | E146: 2 | G146: 2 | I146: 2
A147: 74 | B147: 45 | C147: Ремонт усиливающего провода | D147: км | F147: 0 | H147: 0 | J147: 0
D148: км
A149: 75 | B149: 46 | C149: Замена и установка электрических соединителей | D149: тыс.шт. | E149: 0.04 | F149: 0.175 | H149: 0 | J149: 0
D150: тыс.шт. | E150: 0.007 | G150: 0.006 | I150: 0.001
A151: 76 | B151: 46.1. | C151: В том числе: установка недостающих электрических соединителей | D151: тыс.шт. | F151: 0 | H151: 0 | J151: 0
D152: тыс.шт.
A153: 77 | B153: 47 | C153: Ремонт фидерных и отсасывающих линий | D153: км | F153: 0 | H153: 0 | J153: 0
D154: км
